bitfinex/quotes_BTCUSD_20250808
["timestamp","ask_amount","ask_price","bid_price","bid_amount"]
[1754665474483,0.27450517,116540.0,116530.0,0.0004]
[1754665474702,0.64568888,116540.0,116530.0,0.0004]
[1754665475126,0.79492888,116540.0,116530.0,0.0004]
[1754665475335,0.44953617,116540.0,116530.0,0.0004]
[1754665475547,0.73385777,116540.0,116530.0,0.00106]
[1754665475788,0.35763406,116540.0,116530.0,0.00106]
[1754665476021,0.34964589,116540.0,116530.0,0.00106]
[1754665476227,0.35763599,116540.0,116530.0,0.00106]
[1754665476410,0.1866611,116540.0,116530.0,0.56761333]
[1754665476655,0.0367811,116540.0,116530.0,0.56761333]
[1754665476874,0.0367811,116540.0,116530.0,0.65447544]
[1754665476875,0.0109901,116540.0,116530.0,0.65447544]
[1754665477369,0.0089901,116540.0,116530.0,0.65447544]
[1754665478008,0.0079901,116540.0,116530.0,0.65447544]
[1754665478226,0.00014186,116550.0,116540.0,0.17161489]
[1754665478452,0.00014186,116550.0,116540.0,0.65406071]
[1754665478666,0.00813521,116550.0,116540.0,0.65406071]
[1754665479740,0.00813521,116550.0,116540.0,0.282877]
[1754665479956,0.17973538,116550.0,116540.0,0.282877]
[1754665480171,0.17174203,116550.0,116540.0,0.282877]
[1754665480397,0.17374203,116550.0,116540.0,0.11126211]
[1754665480608,0.17374203,116550.0,116540.0,0.282877]
[1754665481069,0.17374203,116550.0,116540.0,0.11126211]
[1754665481292,0.17374203,116550.0,116540.0,0.11285211]
[1754665481730,0.17374203,116550.0,116540.0,0.08952211]
[1754665482187,0.17374203,116550.0,116540.0,0.261137]
[1754665482412,0.17374203,116550.0,116540.0,0.08952211]
[1754665483298,0.17374203,116550.0,116540.0,0.00266]
[1754665483825,0.54996574,116550.0,116540.0,0.002]
[1754665484043,0.17878203,116550.0,116540.0,0.00266]
[1754665484486,0.17878203,116550.0,116540.0,0.00066]
[1754665484995,0.17161489,116540.0,116530.0,0.0004]
[1754665485205,0.17161489,116540.0,116530.0,0.00106]
[1754665486268,0.17161489,116540.0,116530.0,0.17268962]
[1754665486486,0.17161489,116540.0,116530.0,0.00106]
[1754665487128,0.17361489,116540.0,116530.0,0.17268962]
[1754665487343,0.17361489,116540.0,116530.0,0.00106]
[1754665487997,0.32317489,116540.0,116530.0,0.00106]
[1754665488211,0.6993986,116540.0,116530.0,0.00106]
[1754665488420,0.6993986,116540.0,116530.0,0.0004]
[1754665488630,0.32821489,116540.0,116530.0,0.0014]
[1754665489314,0.7251826,116540.0,116530.0,0.0014]
[1754665489993,0.35399889,116540.0,116530.0,0.0014]
[1754665490220,0.7251826,116540.0,116530.0,0.0014]
[1754665491729,0.35399889,116540.0,116530.0,0.0014]
[1754665491946,0.7251826,116540.0,116530.0,0.0014]
[1754665492159,0.20443889,116540.0,116530.0,0.00206]
[1754665492389,0.35188889,116540.0,116530.0,0.00206]
[1754665492603,0.35384889,116540.0,116530.0,0.0014]
[1754665492821,0.7250326,116540.0,116530.0,0.0014]
[1754665493473,0.35384889,116540.0,116530.0,0.0014]
[1754665493919,0.7250326,116540.0,116530.0,0.0014]
[1754665494134,0.35384889,116540.0,116530.0,0.0014]
[1754665494346,0.34891889,116540.0,116530.0,0.00206]
[1754665495015,0.34891889,116540.0,116530.0,0.17368962]
[1754665496337,0.027784,116540.0,116530.0,0.63173544]
[1754665496566,0.19939889,116540.0,116530.0,0.63173544]
[1754665496772,0.19939889,116540.0,116530.0,0.26055173]
[1754665497196,0.002,116540.0,116530.0,0.26055173]
[1754665497655,0.002,116540.0,116530.0,0.63173544]
[1754665498089,0.002,116540.0,116530.0,0.63214544]
[1754665499004,0.002,116540.0,116530.0,0.90154544]
[1754665499214,0.002,116540.0,116530.0,0.92458544]
[1754665499640,0.002,116540.0,116530.0,0.94203446]
[1754665499855,0.00014186,116550.0,116540.0,0.17161489]
[1754665500069,0.00014186,116550.0,116540.0,0.78037071]
[1754665500718,0.00014186,116550.0,116540.0,0.77996071]
[1754665501163,0.00014186,116550.0,116540.0,0.408777]
[1754665501396,0.00214186,116550.0,116540.0,0.408777]
[1754665502472,0.00214186,116550.0,116540.0,0.411777]
[1754665503141,0.00214186,116550.0,116540.0,0.681177]
[1754665504916,0.37837557,116550.0,116540.0,0.530877]
[1754665505115,0.00719186,116550.0,116540.0,0.530877]
[1754665505337,0.17879203,116550.0,116540.0,0.530877]
[1754665505559,0.00719186,116550.0,116540.0,0.530877]
[1754665505977,0.00719186,116550.0,116540.0,0.531537]
[1754665506187,0.00523186,116550.0,116540.0,0.531537]
[1754665506854,0.17879203,116550.0,116540.0,0.531537]
[1754665507281,0.17879203,116550.0,116540.0,0.530877]
[1754665507492,0.00719186,116550.0,116540.0,0.530877]
[1754665507706,0.17879203,116550.0,116540.0,0.530877]
[1754665507937,0.00719186,116550.0,116540.0,0.530877]
[1754665508151,0.00719186,116550.0,116540.0,0.531537]
[1754665508366,0.00523186,116550.0,116540.0,0.531537]
[1754665508795,0.00214186,116550.0,116540.0,0.531537]
[1754665509680,0.00214186,116550.0,116540.0,0.90272071]
[1754665510613,0.00214186,116550.0,116540.0,0.531537]
[1754665511269,0.00214186,116550.0,116540.0,0.90272071]
[1754665513525,0.00214186,116550.0,116540.0,0.531537]
[1754665514625,0.00214186,116550.0,116540.0,0.90272071]
[1754665514837,0.00214186,116550.0,116540.0,0.531537]
[1754665515260,0.00410186,116550.0,116540.0,0.530877]
[1754665515489,0.00719186,116550.0,116540.0,0.530877]
[1754665516822,0.00719186,116550.0,116540.0,0.531537]
[1754665517037,0.00519186,116550.0,116540.0,0.531537]
[1754665517253,0.00519186,116550.0,116540.0,0.528537]
[1754665517463,0.00619186,116550.0,116540.0,0.529537]
[1754665517674,0.00114186,116550.0,116540.0,0.90272071]
[1754665518592,0.00114186,116550.0,116540.0,0.531537]
[1754665519216,0.00114186,116550.0,116540.0,0.90272071]
[1754665519438,0.00114186,116550.0,116540.0,0.92057973]
[1754665519653,0.00114186,116550.0,116540.0,1.07077236]
[1754665520070,0.00114186,116550.0,116540.0,1.41077236]
[1754665520497,0.00114186,116550.0,116540.0,1.40877236]
[1754665520706,0.00014186,116550.0,116540.0,1.43654636]
[1754665520919,0.06947762,116580.0,116570.0,0.17157073]
[1754665521133,0.06947762,116580.0,116570.0,0.78003655]
[1754665521769,0.00309,116590.0,116580.0,0.17155601]
[1754665522060,0.00309,116590.0,116580.0,0.25841812]
[1754665522061,0.00529226,116590.0,116580.0,0.25841812]
[1754665522683,0.00529226,116590.0,116580.0,0.25907812]
[1754665523166,0.00529226,116590.0,116580.0,0.25841812]
[1754665523626,0.00529226,116590.0,116580.0,0.26679224]
[1754665524281,0.00929226,116590.0,116580.0,0.26779224]
[1754665525493,0.55201726,116590.0,116580.0,0.26779224]
[1754665526029,0.55201726,116590.0,116580.0,0.09623623]
[1754665526270,0.55201726,116590.0,116580.0,0.15881412]
[1754665526510,0.18083355,116590.0,116580.0,0.33037013]
[1754665526946,0.18083355,116590.0,116580.0,0.001]
[1754665526947,0.80064047,116590.0,116580.0,0.001]
[1754665527170,0.17158544,116560.0,116550.0,0.00846313]
[1754665527387,0.17364544,116560.0,116550.0,0.23610211]
[1754665527603,0.17669544,116560.0,116550.0,0.40770228]
[1754665528282,0.17669544,116560.0,116550.0,0.41631879]
[1754665528490,0.17769544,116560.0,116550.0,0.42031879]
[1754665529593,0.17669544,116560.0,116550.0,0.41831879]
[1754665530012,0.00611,116560.0,116550.0,0.42031879]
[1754665530187,0.00611,116560.0,116550.0,0.42232879]
[1754665530606,0.00611,116560.0,116550.0,0.42032879]
[1754665530879,0.001,116560.0,116550.0,0.7915125]
[1754665531078,0.001,116560.0,116550.0,0.7935125]
[1754665532633,0.001,116560.0,116550.0,0.69172879]
[1754665532847,0.00306,116560.0,116550.0,0.69172879]
[1754665533056,0.17769544,116560.0,116550.0,0.68947879]
[1754665533280,0.00611,116560.0,116550.0,0.68947879]
[1754665534560,0.00611,116560.0,116550.0,0.68951879]
[1754665534694,0.17769544,116560.0,116550.0,0.68951879]
[1754665535301,0.17769544,116560.0,116550.0,0.54047879]
[1754665535488,0.54887915,116560.0,116550.0,0.68935879]
[1754665536215,0.17769544,116560.0,116550.0,0.68935879]
[1754665536639,0.17769544,116560.0,116550.0,0.41995879]
[1754665538781,0.00611,116560.0,116550.0,0.41995879]
[1754665540041,0.001,116560.0,116550.0,0.7931525]
[1754665540252,0.001,116560.0,116550.0,0.7945625]
[1754665540466,0.001,116560.0,116550.0,0.7931525]
[1754665541137,0.001,116560.0,116550.0,0.6442725]
[1754665541344,0.001,116560.0,116550.0,0.7940025]
[1754665541973,0.001,116560.0,116550.0,0.7925925]
[1754665543077,0.001,116560.0,116550.0,0.7940025]
[1754665543919,0.001,116560.0,116550.0,0.42140879]
[1754665544127,0.001,116560.0,116550.0,0.7925925]
[1754665544784,0.001,116560.0,116550.0,0.42140879]
[1754665545440,0.00611,116560.0,116550.0,0.42108879]
[1754665545661,0.001,116560.0,116550.0,0.7922725]
[1754665546093,0.001,116560.0,116550.0,0.42108879]
[1754665546304,0.001,116560.0,116550.0,0.7922725]
[1754665546731,0.54887915,116560.0,116550.0,0.004]
[1754665546935,0.62092416,116560.0,116550.0,0.004]
[1754665547141,1.10876416,116560.0,116550.0,0.004]
[1754665547364,0.66553544,116560.0,116550.0,0.004]
[1754665547586,1.03671915,116560.0,116550.0,0.002]
[1754665547786,0.17160017,116550.0,116540.0,0.03404858]
[1754665547992,0.54278388,116550.0,116540.0,0.03404858]
[1754665548192,0.17161489,116540.0,116530.0,0.3284511]
[1754665548401,0.17161489,116540.0,116530.0,0.41531321]
[1754665548402,0.17367489,116540.0,116530.0,0.41531321]
[1754665548742,0.00511,116540.0,116530.0,0.41531321]
[1754665549188,0.00519132,116540.0,116530.0,0.41531321]
[1754665549397,0.00519132,116540.0,116530.0,0.41732321]
[1754665550017,0.00619132,116540.0,116530.0,0.41932321]
[1754665550218,0.00413132,116540.0,116530.0,0.43008555]
[1754665550764,0.00108132,116540.0,116530.0,0.43008555]
[1754665552451,0.00310132,116540.0,116530.0,0.43008555]
[1754665552646,0.17771621,116540.0,116530.0,0.42807555]
[1754665553056,0.00610132,116540.0,116530.0,0.42807555]
[1754665553625,0.00610132,116540.0,116530.0,0.43022555]
[1754665553842,0.00108132,116540.0,116530.0,0.43022555]
[1754665555342,0.00610132,116540.0,116530.0,0.43022555]
[1754665555563,0.17771621,116540.0,116530.0,0.41949407]
[1754665557361,0.17771621,116540.0,116530.0,0.01316234]
[1754665557568,0.17771621,116540.0,116530.0,0.16008234]
[1754665560864,0.17771621,116540.0,116530.0,0.15132]
[1754665561069,0.66142079,116540.0,116530.0,0.0044]
[1754665561291,0.17771621,116540.0,116530.0,0.0044]
[1754665561710,0.17771621,116540.0,116530.0,0.0024]
[1754665562471,0.17771621,116540.0,116530.0,0.0004]
[1754665562719,0.17671621,116540.0,116530.0,0.0004]
[1754665562927,0.17971621,116540.0,116530.0,0.0014]
[1754665565782,0.17971621,116540.0,116530.0,0.17517962]
[1754665565990,0.00810132,116540.0,116530.0,0.17517962]
[1754665566428,0.17971621,116540.0,116530.0,0.17517962]
[1754665566654,0.00308132,116540.0,116530.0,0.17517962]
[1754665566833,0.00308132,116540.0,116530.0,0.26204173]
[1754665567035,0.00308132,116540.0,116530.0,0.26345173]
[1754665567245,0.00308132,116540.0,116530.0,0.26204173]
[1754665569894,0.00308132,116540.0,116530.0,0.63351908]
[1754665570870,0.00308132,116540.0,116530.0,0.26204173]
[1754665574343,0.00308132,116540.0,116530.0,0.63351908]
[1754665574935,0.00308132,116540.0,116530.0,0.63492908]
[1754665575169,0.00308132,116540.0,116530.0,0.6773681]
[1754665576172,8.132e-05,116540.0,116530.0,0.6763681]
[1754665576377,8.132e-05,116540.0,116530.0,0.6783681]
[1754665576790,8.132e-05,116540.0,116530.0,0.6763681]
[1754665576991,0.00108132,116540.0,116530.0,0.6773681]
[1754665577173,0.00108132,116540.0,116530.0,0.6783681]
[1754665577375,8.132e-05,116540.0,116530.0,0.6773681]
[1754665577827,8.132e-05,116540.0,116530.0,1.0183681]
[1754665577828,0.00108132,116540.0,116530.0,1.0183681]
[1754665578027,0.00100539,116540.0,116530.0,1.0183681]
[1754665580689,1e-08,116540.0,116530.0,1.69180245]
[1754665581621,1e-08,116540.0,116530.0,0.94884775]
[1754665581860,1e-08,116540.0,116530.0,1.69180245]
[1754665582327,1e-08,116540.0,116530.0,1.66338645]
[1754665584754,1e-08,116540.0,116530.0,1.57550345]
[1754665584989,1e-08,116540.0,116530.0,1.51528145]
[1754665585206,1e-08,116540.0,116530.0,1.54105545]
[1754665587719,0.00308,116570.0,116530.0,1.54105545]
[1754665587720,0.00308,116570.0,116560.0,0.18903446]
[1754665587950,0.00316136,116570.0,116560.0,0.79346392]
[1754665588178,0.00513136,116570.0,116560.0,0.79346392]
[1754665589028,0.00513136,116570.0,116560.0,0.79446392]
[1754665589669,0.00513136,116570.0,116560.0,0.79237392]
[1754665590303,0.00513136,116570.0,116560.0,0.42089657]
[1754665590553,0.00513136,116570.0,116560.0,0.79237392]
[1754665590815,0.00513136,116570.0,116560.0,0.79446392]
[1754665591513,0.00513136,116570.0,116560.0,0.8197487]
[1754665591723,8.136e-05,116570.0,116560.0,0.44827135]
[1754665591937,0.00513136,116570.0,116560.0,0.8197487]
[1754665592580,0.00513136,116570.0,116560.0,0.8176587]
[1754665593430,0.00316136,116570.0,116560.0,0.8217487]
[1754665593648,0.00416136,116570.0,116560.0,0.8217487]
[1754665593859,0.00613136,116570.0,116560.0,0.8217487]
[1754665594082,0.00613136,116570.0,116560.0,0.45027135]
[1754665594298,0.00613136,116570.0,116560.0,0.8196587]
[1754665597796,0.00613136,116570.0,116560.0,1.0890587]
[1754665598297,0.00613136,116570.0,116560.0,0.69921233]
[1754665598298,0.37760871,116570.0,116560.0,0.69921233]
[1754665598501,0.00613136,116570.0,116560.0,0.69921233]
[1754665601311,0.00613136,116570.0,116560.0,1.07068968]
[1754665601739,0.00613136,116570.0,116560.0,0.69921233]
[1754665604369,0.17770209,116570.0,116560.0,0.69921233]
[1754665604651,0.00613136,116570.0,116560.0,0.69921233]
[1754665606293,0.00613136,116570.0,116560.0,0.55613233]
[1754665606497,0.54917944,116570.0,116560.0,0.69845233]
[1754665606950,0.17770209,116570.0,116560.0,0.69845233]
[1754665607427,0.54917944,116570.0,116560.0,0.52686689]
[1754665607764,0.17770209,116570.0,116560.0,0.52686689]
[1754665607979,0.54917944,116570.0,116560.0,0.52686689]
[1754665608274,0.17770209,116570.0,116560.0,0.25746689]
[1754665608484,0.54917944,116570.0,116560.0,0.25746689]
[1754665608707,0.54917944,116570.0,116560.0,0.02828478]
[1754665608909,0.54917944,116570.0,116560.0,0.003]
[1754665609110,0.57495944,116570.0,116560.0,0.003]
[1754665609609,0.20348209,116570.0,116560.0,0.003]
[1754665609854,0.57495944,116570.0,116560.0,0.003]
[1754665610367,1.05715944,116570.0,116560.0,0.003]
[1754665612371,1.05715944,116570.0,116560.0,0.002]
[1754665612763,1.05815944,116570.0,116560.0,0.002]
[1754665612973,0.17160017,116550.0,116540.0,0.34813729]
[1754665613192,0.17376017,116550.0,116540.0,0.34813729]
[1754665613404,0.17692017,116550.0,116540.0,0.34813729]
[1754665613841,0.17692017,116550.0,116540.0,0.16794322]
[1754665614798,0.17692017,116550.0,116540.0,0.34155811]
[1754665614799,0.17792017,116550.0,116540.0,0.34155811]
[1754665615423,0.17792017,116550.0,116540.0,0.34255811]
[1754665617530,0.54939752,116550.0,116540.0,0.34255811]
[1754665618828,0.17792017,116550.0,116540.0,0.34255811]
[1754665620525,0.17792017,116550.0,116540.0,0.02886322]
[1754665620753,0.54939752,116550.0,116540.0,0.17078322]
[1754665621020,0.54939752,116550.0,116540.0,0.34239811]
[1754665622326,0.54939752,116550.0,116540.0,0.02886322]
[1754665622551,0.54939752,116550.0,116540.0,0.17078322]
[1754665623406,0.54939752,116550.0,116540.0,0.14492]
[1754665623859,0.69131752,116550.0,116540.0,0.003]
[1754665626436,1.06279487,116550.0,116540.0,0.003]
[1754665626643,0.69131752,116550.0,116540.0,0.003]
[1754665627253,0.69031752,116550.0,116540.0,0.001]
[1754665627722,0.69231752,116550.0,116540.0,0.002]
[1754665628090,0.69231752,116550.0,116540.0,0.001]
[1754665628899,0.71810452,116550.0,116540.0,0.001]
[1754665629547,0.34662717,116550.0,116540.0,0.001]
[1754665629758,1.08958187,116550.0,116540.0,0.001]
[1754665630432,0.71810452,116550.0,116540.0,0.001]
[1754665634878,1.08958187,116550.0,116540.0,0.001]
[1754665635963,0.34662717,116550.0,116540.0,0.001]
[1754665636179,0.57618452,116550.0,116540.0,0.001]
[1754665636384,0.71810452,116550.0,116540.0,0.001]
[1754665639611,0.34662717,116550.0,116540.0,0.001]
[1754665639820,0.71810452,116550.0,116540.0,0.001]
[1754665640044,1.42958187,116550.0,116540.0,0.001]
[1754665640924,1.60323823,116550.0,116540.0,0.001]
[1754665641379,1.51644398,116550.0,116540.0,0.001]
[1754665642917,1.52443481,116550.0,116540.0,0.001]
[1754665644012,1.51644398,116550.0,116540.0,0.001]
[1754665644223,1.52443587,116550.0,116540.0,0.001]
[1754665645277,0.78148117,116550.0,116540.0,0.001]
[1754665645484,1.52443587,116550.0,116540.0,0.001]
[1754665646162,0.69461906,116550.0,116540.0,0.001]
[1754665646375,1.06609641,116550.0,116540.0,0.001]
[1754665647064,1.43757376,116550.0,116540.0,0.001]
[1754665647477,1.52443587,116550.0,116540.0,0.001]
[1754665648389,0.17161489,116540.0,116530.0,0.0004]
[1754665648611,0.69013224,116540.0,116530.0,0.0004]
[1754665649296,0.77699435,116540.0,116530.0,0.0004]
[1754665650634,0.78498188,116540.0,116530.0,0.0004]
[1754665650846,0.78698188,116540.0,116530.0,0.0004]
[1754665651544,1.15845923,116540.0,116530.0,0.0004]
[1754665651779,0.78798188,116540.0,116530.0,0.0004]
[1754665653122,1.49945923,116540.0,116530.0,1e-08]
[1754665653567,0.75450453,116540.0,116530.0,1e-08]
[1754665653787,1.51490825,116540.0,116530.0,1e-08]
[1754665654008,1.6037025,116540.0,116530.0,1e-08]
[1754665654221,1.6017025,116540.0,116530.0,1e-08]
[1754665654658,1.6007025,116540.0,116530.0,1e-08]
[1754665654890,1.6047025,116540.0,116530.0,1e-08]
[1754665655120,1.6067025,116540.0,116530.0,1e-08]
[1754665655335,1.6567025,116540.0,116530.0,1e-08]
[1754665657162,1.6547025,116540.0,116530.0,1e-08]
[1754665657387,0.9147478,116540.0,116530.0,1e-08]
[1754665657602,1.6576625,116540.0,116530.0,1e-08]
[1754665658118,1.6546625,116540.0,116530.0,1e-08]
[1754665658343,1.6576625,116540.0,116530.0,1e-08]
[1754665659249,1.6536625,116540.0,116530.0,1e-08]
[1754665659486,1.28218515,116540.0,116530.0,1e-08]
[1754665659707,0.9167078,116540.0,116530.0,1e-08]
[1754665659929,1.25718515,116540.0,116530.0,1e-08]
[1754665660153,1.1953909,116540.0,116530.0,1e-08]
[1754665660372,1.2013909,116540.0,116530.0,1e-08]
[1754665661876,0.82991355,116540.0,116530.0,1e-08]
[1754665662099,1.2013909,116540.0,116530.0,1e-08]
[1754665664102,1.2271889,116540.0,116530.0,1e-08]
[1754665664546,1.31398315,116540.0,116530.0,1e-08]
[1754665665290,0.17165908,116510.0,116500.0,0.21144596]
[1754665665516,0.77386854,116510.0,116500.0,0.21144596]
[1754665665725,0.77699854,116510.0,116500.0,0.21144596]
[1754665665958,0.80279654,116510.0,116500.0,0.21144596]
[1754665666171,0.80279654,116510.0,116500.0,0.21354596]
[1754665666385,0.80279654,116510.0,116500.0,0.21144596]
[1754665666610,0.80284391,116510.0,116500.0,0.21144596]
[1754665666824,0.80684391,116510.0,116500.0,0.11144596]
[1754665667057,0.80784391,116510.0,116500.0,0.11144596]
[1754665667930,0.80684391,116510.0,116500.0,0.11144596]
[1754665668411,1.14684391,116510.0,116500.0,0.11144596]
[1754665668660,1.15680838,116510.0,116500.0,0.11144596]
[1754665668891,0.79375526,116510.0,116500.0,0.11144596]
[1754665669122,1.39643245,116510.0,116500.0,1e-08]
[1754665669379,1.39643245,116510.0,116450.0,0.02067117]
[1754665669380,0.51173278,116460.0,116450.0,0.02067117]
[1754665669609,1.48537959,116460.0,116450.0,0.02067117]
[1754665669833,0.74555489,116460.0,116450.0,0.02067117]
[1754665670067,1.11703224,116460.0,116450.0,0.02067117]
[1754665670509,1.22963792,116460.0,116450.0,0.02067117]
[1754665670744,1.14284367,116460.0,116450.0,0.02114337]
[1754665670957,1.15379405,116460.0,116450.0,0.02114337]
[1754665671406,0.8021567,116460.0,116450.0,0.0207519]
[1754665671630,0.74339489,116460.0,116450.0,0.39427925]
[1754665671852,0.65653278,116460.0,116450.0,0.39427925]
[1754665672075,0.65653278,116460.0,116450.0,0.39568925]
[1754665672299,0.65361278,116460.0,116450.0,0.0242119]
[1754665672746,0.65761278,116460.0,116450.0,0.0228019]
[1754665672996,0.74554489,116460.0,116450.0,0.0207519]
[1754665673229,1.12002224,116460.0,116450.0,0.0207519]
[1754665673465,1.49943741,116460.0,116450.0,0.0207519]
[1754665673698,1.49943741,116460.0,116450.0,1e-08]
[1754665674177,0.78743152,116460.0,116450.0,1e-08]
[1754665674411,1.13390887,116460.0,116450.0,1e-08]
[1754665674614,0.75648271,116460.0,116450.0,1e-08]
[1754665674827,0.75348271,116460.0,116450.0,1e-08]
[1754665675085,1.2380904,116460.0,116450.0,1e-08]
[1754665675328,0.75942868,116460.0,116450.0,1e-08]
[1754665676089,0.84622293,116460.0,116450.0,1e-08]
[1754665676312,0.76342659,116460.0,116450.0,0.00205001]
[1754665676764,0.75942659,116460.0,116450.0,1e-08]
[1754665676991,0.76542659,116460.0,116450.0,1e-08]
[1754665677216,1.2690904,116460.0,116450.0,1e-08]
[1754665677430,1.28715126,116460.0,116450.0,1e-08]
[1754665677664,1.37394551,116460.0,116450.0,1e-08]
[1754665677876,1.28715126,116460.0,116450.0,1e-08]
[1754665678092,0.80254357,116460.0,116450.0,1e-08]
[1754665678858,1.28715126,116460.0,116450.0,1e-08]
[1754665679731,0.80254357,116460.0,116450.0,1e-08]
[1754665679936,1.28715126,116460.0,116450.0,1e-08]
[1754665680361,0.51174753,116450.0,116440.0,0.00876781]
[1754665680638,0.75393746,116450.0,116440.0,0.00890967]
[1754665681563,0.76269223,116450.0,116440.0,0.00890967]
[1754665682870,0.76669223,116450.0,116440.0,0.00890967]
[1754665683290,0.76162223,116450.0,116440.0,0.01095967]
[1754665683506,0.76138223,116450.0,116440.0,0.01095967]
[1754665684167,0.76136733,116450.0,116440.0,0.01095967]
[1754665684397,0.75261256,116450.0,116440.0,0.01236967]
[1754665684614,0.41253256,116450.0,116440.0,0.52014736]
[1754665684817,0.32567045,116450.0,116440.0,0.69190964]
[1754665685036,0.65774753,116450.0,116440.0,0.69190964]
[1754665685467,0.146,116450.0,116440.0,0.69190964]
[1754665685681,0.004,116450.0,116440.0,0.69190964]
[1754665686122,0.344,116450.0,116440.0,0.69190964]
[1754665686986,0.34,116450.0,116440.0,0.69290964]
[1754665687407,0.343,116450.0,116440.0,0.69290964]
[1754665687660,0.34,116450.0,116440.0,0.69190964]
[1754665688093,0.002,116450.0,116440.0,0.77877175]
[1754665688966,0.002,116450.0,116440.0,0.79622077]
[1754665689590,0.002,116450.0,116440.0,0.79822077]
[1754665692238,0.002,116450.0,116440.0,0.31361308]
[1754665692447,0.002,116450.0,116440.0,0.79822077]
[1754665692662,0.17374753,116450.0,116440.0,0.35114195]
[1754665692861,0.17374753,116450.0,116440.0,0.83574964]
[1754665693482,0.17374753,116450.0,116440.0,0.35114195]
[1754665693680,0.17374753,116450.0,116440.0,0.83574964]
[1754665693887,0.002,116450.0,116440.0,0.83574964]
[1754665694096,0.002,116450.0,116440.0,0.94006077]
[1754665695356,0.002,116450.0,116440.0,0.45545308]
[1754665695561,0.002,116450.0,116440.0,0.94006077]
[1754665695765,0.002,116450.0,116440.0,0.45345308]
[1754665695973,0.002,116450.0,116440.0,0.93806077]
[1754665696179,0.17173278,116460.0,116450.0,0.17173656]
[1754665696386,0.17173278,116460.0,116450.0,0.65839425]
[1754665697430,0.5203051,116470.0,116450.0,0.66139425]
[1754665697641,0.001,116460.0,116450.0,0.66239425]
[1754665697852,0.17273278,116460.0,116450.0,0.66239425]
[1754665698266,0.17273278,116460.0,116450.0,0.00605]
[1754665698477,0.31964278,116460.0,116450.0,0.00605]
[1754665698685,0.17780278,116460.0,116450.0,0.00605]
[1754665698888,0.18576252,116460.0,116450.0,0.004]
[1754665699106,0.18576252,116460.0,116450.0,0.001]
[1754665699307,0.18576252,116460.0,116450.0,0.002]
[1754665699723,0.18576363,116460.0,116450.0,0.002]
[1754665699900,0.18576363,116460.0,116450.0,0.001]
[1754665700343,0.18069363,116460.0,116450.0,0.17479753]
[1754665700546,0.17273278,116460.0,116450.0,0.65940522]
[1754665700959,0.17273278,116460.0,116450.0,0.17479753]
[1754665701178,0.17273278,116460.0,116450.0,0.65940522]
[1754665701392,0.17273278,116460.0,116450.0,0.17479753]
[1754665701568,0.17273278,116460.0,116450.0,0.65940522]
[1754665701818,0.17273278,116460.0,116450.0,0.17479753]
[1754665702448,0.17273278,116460.0,116450.0,0.17679753]
[1754665704088,0.17778278,116460.0,116450.0,0.00505]
[1754665704292,0.17778278,116460.0,116450.0,0.003]
[1754665704505,0.17778278,116460.0,116450.0,0.17474753]
[1754665704706,0.17778278,116460.0,116450.0,0.003]
[1754665704914,0.00605,116460.0,116450.0,0.66146522]
[1754665705118,0.17273278,116460.0,116450.0,0.66146522]
[1754665705692,0.17273278,116460.0,116450.0,0.17685753]
[1754665705892,0.17478278,116460.0,116450.0,0.66146522]
[1754665706075,0.17778278,116460.0,116450.0,0.17685753]
[1754665706485,0.17778278,116460.0,116450.0,0.66146522]
[1754665706769,0.17778278,116460.0,116450.0,0.48760769]
[1754665706990,0.17778278,116460.0,116450.0,0.003]
[1754665707873,0.17778278,116460.0,116450.0,0.17474753]
[1754665708303,0.17778278,116460.0,116450.0,0.003]
[1754665708518,0.17778278,116460.0,116450.0,0.17474753]
[1754665708733,0.17778278,116460.0,116450.0,0.003]
[1754665709162,0.17778278,116460.0,116450.0,0.17474753]
[1754665709380,0.001,116460.0,116450.0,0.66146522]
[1754665709818,0.17273278,116460.0,116450.0,0.66146522]
[1754665710037,0.001,116460.0,116450.0,0.66146522]
[1754665710482,0.001,116460.0,116450.0,0.80330522]
[1754665710694,0.17273278,116460.0,116450.0,0.80330522]
[1754665711146,0.17478278,116460.0,116450.0,0.31869753]
[1754665711364,0.17778278,116460.0,116450.0,0.80330522]
[1754665712466,0.17778278,116460.0,116450.0,0.66146522]
[1754665712920,0.17778278,116460.0,116450.0,0.48971769]
[1754665713141,0.17778278,116460.0,116450.0,0.003]
[1754665713571,0.001,116460.0,116450.0,0.66146522]
[1754665714009,0.001,116460.0,116450.0,0.74832733]
[1754665714268,0.001,116460.0,116450.0,1.25179404]
[1754665714490,0.001,116460.0,116450.0,1.27490404]
[1754665715130,0.001,116460.0,116450.0,1.30035441]
[1754665716636,0.17170329,116480.0,116470.0,0.18915387]
[1754665716891,0.00205,116480.0,116470.0,0.90242367]
[1754665717100,0.00505,116480.0,116470.0,0.90242367]
[1754665717309,0.00505,116480.0,116470.0,0.41781598]
[1754665717728,0.00505,116480.0,116470.0,0.90242367]
[1754665718149,0.00505,116480.0,116470.0,0.90453367]
[1754665718367,0.17168962,116490.0,116480.0,0.17170329]
[1754665718599,0.17673962,116490.0,116470.0,0.90342367]
[1754665718802,0.17373962,116490.0,116480.0,0.17170329]
[1754665719015,0.17373962,116490.0,116470.0,0.90342367]
[1754665719232,0.17170329,116480.0,116470.0,0.90342367]
[1754665719477,0.17468962,116490.0,116480.0,0.17170329]
[1754665719692,0.18173962,116490.0,116480.0,0.001]
[1754665720126,0.18173962,116490.0,116480.0,0.00974265]
[1754665720366,0.18173962,116490.0,116480.0,0.001]
[1754665721081,0.17170329,116480.0,116470.0,0.40900791]
[1754665721295,0.17675329,116480.0,116470.0,0.41111791]
[1754665721504,0.17675329,116480.0,116470.0,0.41211791]
[1754665721722,0.17675329,116480.0,116470.0,0.1803458]
[1754665721945,0.17675329,116480.0,116470.0,0.3221058]
[1754665722604,0.17975329,116480.0,116470.0,0.3231058]
[1754665722827,0.003,116480.0,116470.0,0.8966856]
[1754665724186,0.003,116480.0,116470.0,0.91413462]
[1754665725291,0.003,116480.0,116470.0,0.91554462]
[1754665725728,0.003,116480.0,116470.0,1.20805462]
[1754665726377,0.343,116510.0,116500.0,0.17167381]
[1754665726624,0.34505,116510.0,116500.0,0.31343381]
[1754665727524,0.51670908,116510.0,116500.0,0.31343381]
[1754665728961,0.51670908,116510.0,116500.0,0.14176]
[1754665729167,0.52070908,116510.0,116500.0,0.001]
[1754665729597,0.60750333,116510.0,116500.0,0.001]
[1754665730014,0.52070908,116510.0,116500.0,0.001]
[1754665730166,0.52070908,116510.0,116500.0,0.002]